bitfinex-derivatives/quotes_ETHF0:USTF0_20250105
["timestamp","ask_amount","ask_price","bid_price","bid_amount"]
[1736044629075,0.99732902,3639.1,3638.8,11.08493831]
[1736044629374,0.99732902,3639.1,3638.9,0.27484]
[1736044629677,0.99732902,3639.1,3639.0,0.4281]
[1736044630469,0.99732902,3639.1,3639.0,6.89020929]
[1736044630878,0.27481,3639.4,3639.0,7.16504929]
[1736044630879,0.99732902,3639.3,3639.0,7.16504929]
[1736044631679,0.99732902,3639.3,3639.0,8.16237831]
[1736044631978,0.99732902,3639.5,3639.1,0.27482]
[1736044632179,0.99732902,3639.5,3639.1,6.73692929]
[1736044632680,0.99732902,3639.5,3639.2,0.27482]
[1736044632977,4.20512902,3639.7,3639.4,0.2748]
[1736044633175,4.20512902,3639.7,3639.5,0.4348]
[1736044633376,4.20512902,3639.7,3639.6,0.4367]
[1736044633578,0.99732902,3639.7,3639.6,0.4367]
[1736044636971,1.27210902,3639.7,3639.5,0.4348]
[1736044638475,0.27479,3639.6,3639.5,0.4348]
[1736044638677,0.70949,3639.6,3639.5,0.4348]
[1736044638879,0.4347,3639.6,3639.3,0.4117]
[1736044639078,0.99732902,3639.4,3639.1,0.4132]
[1736044639275,0.27483,3639.1,3639.0,6.46210929]
[1736044639684,0.27483,3639.1,3638.8,6.46210929]
[1736044639982,0.99732902,3639.0,3638.8,6.46210929]
[1736044640884,0.99732902,3639.0,3638.6,2.51128902]
[1736044641484,0.99732902,3639.2,3638.8,0.99732902]
[1736044642177,0.99732902,3639.2,3638.7,0.27486]
[1736044642178,3.2078,3639.5,3638.6,10.90900929]
[1736044642385,6.44834642,3639.9,3639.4,0.2748]
[1736044642681,3.51532642,3639.9,3639.5,1.2604]
[1736044642984,0.27478,3639.8,3639.5,1.2604]
[1736044643685,0.4401,3640.1,3639.5,1.2604]
[1736044643884,0.27478,3639.8,3639.5,1.2604]
[1736044644278,0.4401,3640.1,3639.5,1.2604]
[1736044644580,0.71486,3640.1,3639.5,1.53519]
[1736044644776,0.27475,3640.2,3639.6,0.27479]
[1736044644980,3.2078,3640.3,3639.6,3.48259]
[1736044645183,0.27475,3640.1,3639.6,3.48259]
[1736044645477,3.24054642,3640.4,3639.6,5.41761796]
[1736044645681,3.24054642,3640.4,3640.0,0.27476]
[1736044645881,3.24054642,3640.4,3640.1,0.8545]
[1736044646185,0.4401,3640.5,3640.2,0.4152]
[1736044646984,0.71482,3640.5,3640.2,0.4152]
[1736044647982,0.27473,3640.4,3640.2,0.4152]
[1736044649286,0.4401,3640.5,3640.2,0.4152]
[1736044652088,3.48251,3640.7,3640.2,0.4152]
[1736044652494,3.2078,3640.7,3640.2,0.68995]
[1736044652690,3.2078,3640.7,3640.2,0.68994]
[1736044653091,0.4248,3640.9,3640.2,0.4152]
[1736044653298,0.27471,3640.7,3640.2,0.4152]
[1736044653995,0.4248,3640.9,3640.2,0.4152]
[1736044654296,0.27473,3640.5,3640.2,0.4152]
[1736044656195,3.2078,3640.7,3640.2,0.4152]
[1736044656501,3.2078,3641.1,3640.8,0.2747]
[1736044656700,3.2078,3641.1,3640.9,0.8569]
[1736044656902,3.2078,3641.1,3640.9,1.2817]
[1736044657398,3.2078,3641.1,3641.0,0.27469]
[1736044657895,0.4101,3641.4,3641.1,0.27467]
[1736044658800,6.58192823,3641.9,3640.9,1.2817]
[1736044658801,0.27463,3641.8,3640.9,1.2817]
[1736044659002,0.68523,3641.8,3641.2,0.27467]
[1736044659800,0.68523,3641.8,3641.1,0.27468]
[1736044660098,0.68523,3641.8,3641.2,0.27467]
[1736044660294,0.4106,3641.8,3641.3,0.27466]
[1736044660501,0.68523,3641.8,3641.2,0.27467]
[1736044661204,0.4106,3641.8,3641.0,2.20981796]
[1736044661508,0.4106,3641.8,3641.3,0.27466]
[1736044661695,0.4106,3641.8,3641.2,3.2078]
[1736044662004,0.4106,3641.8,3641.4,0.27465]
[1736044662204,0.4106,3641.8,3641.5,0.4202]
[1736044662402,0.4106,3641.8,3641.6,0.4436]
[1736044662613,0.4106,3641.8,3641.6,0.8872]
[1736044664213,0.4106,3641.8,3641.5,0.4202]
[1736044664402,0.68523,3641.8,3641.5,0.4202]
[1736044665817,0.4106,3641.8,3641.5,0.4202]
[1736044666112,0.27461,3642.0,3641.5,0.69485]
[1736044666312,0.4383,3642.1,3641.5,0.4202]
[1736044666512,0.27461,3642.0,3641.5,0.4202]
[1736044666715,0.4383,3642.1,3641.5,0.69485]
[1736044667015,0.7129,3642.1,3641.5,0.69485]
[1736044667316,0.2746,3642.1,3641.5,0.69485]
[1736044667508,0.27461,3642.0,3641.5,0.4202]
[1736044668313,3.48241,3642.0,3641.5,0.4202]
[1736044669517,0.27462,3641.9,3641.5,0.4202]
[1736044671011,3.48241,3642.0,3641.5,0.4202]
[1736044671209,0.27461,3642.0,3641.5,0.4202]
[1736044671408,0.27463,3641.9,3641.5,0.4202]
[1736044672415,0.27463,3641.8,3641.5,0.4202]
[1736044673006,0.8569,3642.1,3641.5,0.4202]
[1736044673209,0.27464,3641.7,3641.5,0.4202]
[1736044673619,0.4414,3641.6,3641.5,0.4202]
[1736044675220,0.27466,3641.5,3641.1,0.8826]
[1736044675420,0.27466,3641.4,3641.1,1.3058]
[1736044675821,0.4269,3641.5,3641.1,1.3058]
[1736044676120,0.27466,3641.3,3641.1,1.3058]
[1736044676825,0.4269,3641.5,3641.1,1.3058]
[1736044677009,0.27466,3641.4,3641.1,1.3058]
[1736044677213,0.4269,3641.5,3641.1,1.3058]
[1736044677409,0.4269,3641.5,3641.2,0.27467]
[1736044677922,0.27466,3641.4,3641.1,1.3058]
[1736044678111,0.4269,3641.5,3641.1,1.3058]
[1736044678312,0.27466,3641.4,3641.1,1.3058]
[1736044679820,0.70155,3641.5,3641.1,1.58048]
[1736044680421,0.27466,3641.4,3641.1,1.3058]
[1736044680622,0.70155,3641.5,3641.1,1.58047]
[1736044682725,0.4269,3641.5,3641.2,0.27467]
[1736044682927,0.71604,3641.6,3641.2,0.27467]
[1736044683128,3.2078,3641.8,3641.3,2.20981796]
[1736044683321,3.2078,3641.8,3641.4,0.27466]
[1736044683626,0.27461,3642.1,3641.6,0.27464]
[1736044683824,0.27461,3642.1,3641.7,1.2387]
[1736044684829,0.27461,3642.0,3641.7,1.2387]
[1736044685628,4.2718,3642.2,3641.7,1.2387]
[1736044685825,0.2746,3642.1,3641.7,1.2387]
[1736044691936,4.2718,3642.2,3641.4,3.2078]
[1736044692237,0.27466,3641.3,3641.2,6.46210929]
[1736044692736,3.48246,3641.3,3641.2,6.46210929]
[1736044693331,3.2078,3641.3,3640.7,0.8341]
[1736044693831,0.27469,3641.0,3640.7,0.8341]
[1736044694028,0.4099,3640.9,3640.7,0.8341]
[1736044699030,0.6846,3640.9,3640.7,0.8341]
[1736044700135,0.4099,3640.9,3640.7,0.8341]
[1736044701243,0.2747,3640.8,3640.7,0.8341]
[1736044701536,0.6846,3640.9,3640.7,0.8341]
[1736044703128,0.4099,3640.9,3640.7,0.8341]
[1736044703334,0.2747,3640.8,3640.7,0.8341]
[1736044703938,0.6846,3640.9,3640.7,0.8341]
[1736044704136,0.2747,3640.8,3640.7,0.8341]
[1736044705535,0.27471,3640.7,3640.6,4.29152378]
[1736044705737,0.2747,3640.8,3640.6,4.29152378]
[1736044706339,0.2747,3640.8,3640.5,5.14012378]
[1736044706642,0.27471,3640.7,3640.5,5.14012378]
[1736044706845,0.27472,3640.6,3640.5,4.29152378]
[1736044708545,0.27472,3640.6,3640.2,3.2078]
[1736044708546,0.27473,3640.5,3640.2,3.2078]
[1736044709138,0.27472,3640.6,3640.2,3.2078]
[1736044710039,0.27472,3640.6,3640.2,3.48255]
[1736044710343,0.27472,3640.6,3640.2,3.2078]
[1736044711442,0.27472,3640.5,3640.2,3.2078]
[1736044712341,0.27474,3640.4,3640.2,3.2078]
[1736044712943,0.27473,3640.5,3640.2,3.2078]
[1736044715139,0.27474,3640.4,3640.2,3.2078]
[1736044715539,3.2078,3640.7,3640.2,3.2078]
[1736044715741,0.27472,3640.6,3640.2,3.2078]
[1736044719649,0.27473,3640.5,3640.2,3.2078]
[1736044721754,0.27473,3640.5,3640.1,1.13265]
[1736044721953,0.27473,3640.5,3640.1,0.8579]
[1736044723352,0.27474,3640.3,3640.1,0.8579]
[1736044723547,0.27475,3640.2,3640.1,0.8579]
[1736044723955,0.68775,3640.2,3640.1,0.8579]
[1736044724346,1.68462761,3640.2,3640.1,0.8579]
[1736044726249,0.68775,3640.2,3640.1,0.8579]
[1736044727853,3.89555,3640.2,3640.1,0.8579]
[1736044730559,3.6208,3640.2,3640.1,0.8579]
[1736044730753,3.2078,3640.2,3640.1,0.8579]
[1736044730953,3.2078,3640.2,3640.1,1.13265]
[1736044731552,3.2078,3640.2,3640.1,0.8579]
[1736044731763,0.4199,3640.8,3640.1,0.8579]
[1736044731764,3.2078,3640.7,3640.1,0.8579]
[1736044732059,0.27475,3640.2,3640.1,0.8579]
[1736044732658,0.4069,3640.6,3640.1,0.8579]
[1736044732863,3.2078,3640.7,3640.1,0.8579]
[1736044733256,0.27473,3640.4,3640.1,0.8579]
[1736044738457,3.2078,3640.7,3640.1,5.14942378]
[1736044738458,0.27472,3640.6,3640.1,5.14942378]
[1736044738761,0.27475,3640.3,3640.1,5.14942378]
[1736044739762,0.27474,3640.3,3640.1,5.14942378]
[1736044739955,0.27474,3640.3,3640.1,0.8579]
[1736044740764,0.4139,3640.5,3640.1,0.8579]
[1736044741065,0.27475,3640.2,3640.1,0.8579]
[1736044744269,0.27475,3640.2,3640.1,5.14942378]
[1736044744667,0.4139,3640.5,3640.1,5.14942378]
[1736044744668,0.27474,3640.3,3640.1,5.14942378]
[1736044744868,0.27475,3640.2,3640.1,5.14942378]
[1736044745169,0.4139,3640.5,3640.1,5.14942378]
[1736044745367,0.27474,3640.3,3640.1,5.14942378]
[1736044745963,0.27475,3640.2,3640.1,5.14942378]
[1736044747567,3.91735,3640.2,3640.1,4.29152378]
[1736044748073,5.80245525,3640.2,3639.9,4.29152378]
[1736044748273,1.2715118,3640.0,3639.9,4.29152378]
[1736044749473,0.27477,3639.9,3639.8,4.73252378]
[1736044750274,0.27477,3639.9,3639.8,4.29152378]
[1736044750469,0.68917,3639.9,3639.8,4.29152378]
[1736044752375,3.65494642,3639.9,3639.5,4.29152378]
[1736044752574,3.48259,3639.6,3639.5,4.29152378]
[1736044752774,4.4793418,3639.6,3639.5,4.29152378]
[1736044754977,2.15999557,3639.8,3639.5,4.29152378]
[1736044754978,3.43152737,3639.8,3639.5,4.29152378]
[1736044755180,3.43152737,3639.8,3639.6,0.4094]
[1736044755375,3.15674737,3639.8,3639.6,0.4094]
[1736044755678,0.27478,3639.7,3639.6,0.4094]
[1736044755973,0.27479,3639.6,3639.5,4.29152378]
[1736044756177,4.4793418,3639.6,3639.5,4.29152378]
[1736044756877,0.2748,3639.5,3639.4,4.73252378]
[1736044758176,0.7239,3639.5,3639.4,4.73252378]
[1736044759679,0.7239,3639.5,3639.4,0.441]
[1736044760572,0.4491,3639.5,3639.2,4.29152378]
[1736044760782,0.27481,3639.3,3639.2,4.29152378]
[1736044761476,0.71601,3639.3,3639.2,4.29152378]
[1736044762374,4.0941911,3639.3,3638.7,0.8556]
[1736044762676,4.4794018,3638.8,3638.7,0.8556]
[1736044765782,4.8849018,3638.8,3638.7,0.8556]
[1736044769484,5.8816536,3638.8,3638.7,0.4475]
[1736044769685,0.2749,3638.2,3638.1,0.4084]
[1736044769880,1.2716518,3638.2,3638.1,0.4084]
[1736044772585,0.27491,3638.0,3637.9,0.41]
[1736044772777,1.2716618,3638.0,3637.9,0.41]
[1736044775088,0.9967518,3638.0,3637.9,0.41]
[1736044778391,1.2716618,3638.0,3637.9,0.41]
[1736044778690,0.9967518,3638.0,3637.9,0.41]
[1736044785895,0.9967518,3638.2,3637.9,0.41]
[1736044786199,0.9967518,3638.2,3638.0,0.4484]
[1736044786392,0.9967518,3638.2,3638.0,0.8662]
[1736044786594,0.9967518,3638.5,3638.1,0.2749]
[1736044786797,0.9967518,3638.5,3638.0,1.8629518]
[1736044786999,0.9967518,3638.5,3638.1,0.2749]
[1736044788900,1.2716318,3638.5,3638.0,2.1378618]
[1736044789098,0.9967518,3638.3,3638.0,2.1378618]
[1736044792805,0.9967518,3638.3,3638.0,0.8662]
[1736044793106,1.2716418,3638.3,3638.0,0.8662]
[1736044793911,0.9967518,3638.3,3638.0,1.14111]
[1736044799714,0.9967518,3638.3,3638.0,5.43263378]
[1736044800316,1.2716518,3638.3,3638.0,5.15772378]
[1736044800710,1.2716518,3638.3,3638.1,4.29152378]
[1736044802114,0.9967518,3638.3,3638.1,4.29152378]
[1736044803318,0.2749,3638.2,3638.1,4.29152378]
[1736044803618,1.1306,3638.2,3638.1,4.29152378]
[1736044803808,0.27491,3638.1,3638.0,6.46210929]
[1736044804013,1.2716618,3638.1,3638.0,6.46210929]
[1736044805213,1.2716618,3638.1,3638.0,4.30919619]
[1736044806617,0.27491,3638.0,3637.9,6.46210929]
[1736044806820,1.2716618,3638.1,3637.9,6.46210929]
[1736044807320,0.9967518,3638.1,3637.9,6.46210929]
[1736044807617,1.2716618,3638.1,3637.9,6.46210929]
[1736044807819,1.2716618,3638.1,3638.0,6.46210929]
[1736044808621,0.9967518,3638.1,3638.0,6.46210929]
[1736044809021,0.8557,3638.2,3638.0,6.73701929]
[1736044810021,4.9075418,3638.3,3637.8,8.62609825]
[1736044810022,4.2045518,3638.3,3638.1,6.73700929]
[1736044810212,4.2045518,3638.3,3638.2,1.2857]
[1736044810413,4.2045518,3638.3,3638.2,1.5606]
[1736044810613,4.2045518,3638.3,3638.2,1.2857]
[1736044812420,2.15719151,3638.6,3638.4,0.27488]
[1736044814525,2.15719151,3638.9,3638.4,9.62285005]
[1736044814816,2.15719151,3638.9,3638.8,1.2716018]
[1736044815723,2.15719151,3638.9,3638.8,4.4794018]
[1736044816023,0.9967518,3639.2,3638.8,4.2045518]
[1736044816322,0.9967518,3639.2,3639.1,0.27483]
[1736044816925,0.9967518,3639.4,3639.1,0.27483]
[1736044818522,1.4282518,3639.6,3639.2,0.9967518]
[1736044818720,1.4282518,3639.6,3639.3,0.27481]
[1736044819225,1.4282518,3639.6,3639.4,0.4295]
[1736044819526,3.15394331,3639.8,3639.4,1.4262518]
[1736044819722,2.15719151,3639.8,3639.7,0.27478]
[1736044820526,0.4459,3640.1,3639.9,0.27476]
[1736044820825,0.4459,3640.1,3640.0,0.4295]
[1736044825324,0.4459,3640.1,3640.0,0.70426]
[1736044825528,5.41661864,3640.4,3640.0,0.4295]
[1736044825716,0.4458,3640.3,3640.0,0.4295]
[1736044828126,0.4458,3640.3,3640.0,0.70425]
[1736044828324,0.4458,3640.3,3640.1,0.8342]
[1736044833636,0.4458,3640.3,3640.1,0.4181]
[1736044835236,0.4225,3640.5,3640.2,0.27474]
[1736044835437,0.4078,3640.6,3640.3,0.27474]
[1736044835635,0.4078,3640.6,3640.1,0.4181]
[1736044835832,3.2078,3640.8,3640.5,0.27472]
[1736044836035,3.2078,3640.8,3640.6,0.8305]
[1736044837232,3.2078,3640.8,3640.7,0.27471]
[1736044837942,3.2078,3640.8,3640.6,1.10521]
[1736044838333,3.2078,3640.8,3640.6,0.8305]
[1736044838534,3.2078,3640.8,3640.6,1.10521]
[1736044839242,0.27468,3641.1,3640.6,1.10521]
[1736044839836,3.6263,3641.2,3640.6,1.10521]
[1736044840040,0.27468,3641.1,3640.6,0.8305]
[1736044840230,0.27469,3641.0,3640.6,0.8305]
[1736044842744,0.27469,3641.0,3640.6,1.10522]
[1736044843742,0.4185,3641.2,3640.6,0.8305]
[1736044843939,0.27469,3641.0,3640.6,0.8305]
[1736044844738,0.2747,3640.9,3640.6,0.8305]
[1736044844937,0.4185,3641.2,3640.6,0.8305]
[1736044845140,0.27472,3640.6,3640.3,3.6192]
[1736044845449,0.27472,3640.6,3640.3,4.0559]
[1736044846646,0.8678,3640.7,3640.3,4.0559]
[1736044846849,1.14251,3640.7,3640.3,4.33064]
[1736044847437,0.72321,3640.7,3640.3,4.33064]
[1736044847845,0.27472,3640.6,3640.3,0.8481]
[1736044848940,0.4485,3640.7,3640.3,0.8481]
[1736044849146,3.93101,3640.7,3640.3,1.12284]
[1736044849739,3.6563,3640.7,3640.3,0.8481]
[1736044850036,3.6563,3640.7,3640.4,0.27473]
[1736044850245,3.93101,3640.7,3640.5,0.99639513]
[1736044850641,3.93101,3640.7,3640.6,0.4369]
[1736044853147,3.6563,3640.7,3640.6,0.4369]
[1736044854045,0.4485,3640.7,3640.6,0.4369]
[1736044854648,3.6156,3641.1,3640.7,0.2747]
[1736044854848,3.89028,3641.1,3640.8,1.40619513]
[1736044855145,3.89028,3641.1,3640.8,1.82529513]
[1736044856246,0.27469,3641.0,3640.8,0.8289]
[1736044856443,3.6156,3641.1,3640.8,0.8289]
[1736044856648,0.27469,3640.9,3640.8,0.4191]
[1736044857344,0.27469,3641.0,3640.8,0.4191]
[1736044858244,1.27108513,3641.0,3640.8,0.4191]
[1736044858745,1.27108513,3641.0,3640.6,0.4369]
[1736044858746,0.99639513,3641.0,3640.6,0.4369]
[1736044858938,0.27471,3640.7,3640.6,0.4369]
[1736044859441,0.69051,3640.7,3640.6,0.4369]
[1736044860640,0.69051,3640.7,3640.4,0.8409]
[1736044860849,0.4081,3640.6,3640.4,0.8409]
[1736044861349,0.27472,3640.5,3640.2,0.4492]
[1736044861551,0.27472,3640.5,3640.2,5.18267855]
[1736044862050,0.27474,3640.4,3640.2,5.18267855]
[1736044862346,0.82,3640.6,3640.2,5.18267855]
[1736044862347,0.27473,3640.5,3640.2,5.18267855]
[1736044863041,0.82,3640.6,3640.2,5.18267855]
[1736044863241,3.48254,3640.3,3640.2,4.30327855]
[1736044864352,3.48254,3640.3,3640.1,4.30327855]
[1736044864353,0.27475,3640.2,3640.1,4.30327855]
[1736044864549,0.70755,3640.2,3640.1,4.30327855]
[1736044865345,0.70755,3640.2,3639.8,4.30327855]
[1736044865554,0.4339,3640.1,3639.8,4.30327855]
[1736044866739,0.70866,3640.1,3639.8,4.30327855]
[1736044867242,5.36499151,3640.3,3639.8,4.30327855]
[1736044867442,5.36499151,3640.3,3640.0,0.27476]
[1736044867651,5.36499151,3640.3,3640.2,0.27475]
[1736044867846,3.2078,3640.3,3640.1,0.27475]
[1736044868252,3.2078,3640.3,3640.2,0.4438]
[1736044869044,2.15719151,3640.4,3640.2,0.4438]
[1736044869451,0.4339,3640.5,3640.2,4.74707855]
[1736044869754,0.4339,3640.5,3640.3,0.4341]
[1736044870753,0.70862,3640.5,3640.3,0.4341]
[1736044870957,0.27474,3640.3,3640.2,4.74707855]
[1736044871147,3.48254,3640.3,3640.2,4.30327855]
[1736044872040,3.48254,3640.3,3639.9,8.6113159]
[1736044872041,0.27476,3640.0,3639.9,4.30327855]
[1736044873150,0.4436,3640.2,3639.9,4.30327855]
[1736044873450,2.15719151,3640.3,3639.8,4.30327855]
[1736044873847,2.15719151,3640.3,3640.0,0.27476]
[1736044874148,2.15719151,3640.3,3639.8,4.30327855]
[1736044874149,2.15719151,3640.3,3640.1,0.70785]
[1736044874349,2.15719151,3640.3,3640.2,0.4141]
[1736044874544,3.24054642,3640.4,3640.2,0.8543]
[1736044874545,2.15719151,3640.4,3640.2,0.8543]
[1736044875957,2.86581151,3640.5,3640.2,0.8543]
[1736044876163,2.15719151,3640.5,3640.2,0.8543]
[1736044876456,2.15719151,3640.5,3640.3,0.27474]
[1736044877246,3.48251,3640.7,3640.4,4.30327855]
[1736044877958,3.2078,3640.7,3640.4,4.30327855]
[1736044879459,3.2078,3640.7,3640.5,4.30327855]
[1736044880351,3.48251,3640.7,3640.5,4.30327855]
[1736044880957,3.48251,3640.7,3640.4,4.30327855]
[1736044882361,0.27472,3640.6,3640.4,4.30327855]
[1736044882563,0.4085,3640.5,3640.4,4.30327855]
[1736044883453,0.4085,3640.5,3640.3,4.71777855]
[1736044884564,0.68322,3640.5,3640.3,4.71777855]
[1736044884866,0.27473,3640.4,3640.3,4.30327855]
[1736044885054,0.71913,3640.4,3640.3,4.30327855]
[1736044886156,0.27474,3640.3,3640.1,5.14677855]
[1736044886357,0.4444,3640.4,3640.1,5.14677855]
[1736044886558,3.48254,3640.3,3640.1,5.14677855]
[1736044886963,0.27475,3640.2,3640.1,5.14677855]
[1736044887162,0.27475,3640.2,3640.1,0.8435]
[1736044887364,3.48254,3640.3,3640.1,0.8435]
[1736044887564,0.27475,3640.2,3640.1,0.8435]
[1736044894470,0.27474,3640.3,3640.1,0.8435]
[1736044894670,0.27475,3640.2,3640.1,0.8435]
[1736044895173,2.20821422,3640.3,3640.0,4.30327855]
[1736044895373,0.27475,3640.1,3640.0,4.30327855]
[1736044895966,0.27475,3640.1,3639.7,9.0346159]
[1736044895967,2.60599151,3640.2,3639.8,4.30327855]
[1736044896167,0.71737,3640.0,3639.8,4.30327855]
[1736044896665,0.27477,3639.9,3639.8,4.30327855]
[1736044897371,0.71736,3640.0,3639.8,4.30327855]
[1736044898166,2.15719151,3640.2,3639.8,4.30327855]
[1736044898376,2.43194151,3640.2,3639.9,0.41]
[1736044898672,2.43194151,3640.2,3639.9,4.71327855]
[1736044899474,2.15719151,3640.2,3639.9,4.71327855]
[1736044899769,2.43193151,3640.3,3640.0,4.30327855]
[1736044899969,2.43193151,3640.3,3640.1,0.4237]
[1736044900279,2.15719151,3640.3,3640.1,0.4237]
[1736044900476,2.15719151,3640.3,3640.2,0.4451]
[1736044900876,2.43192151,3640.4,3640.2,0.4451]
[1736044901272,2.15719151,3640.4,3640.2,0.4451]
[1736044901473,2.43193151,3640.4,3640.2,0.4451]
[1736044901669,2.43192151,3640.4,3640.2,0.4451]
[1736044901876,2.15719151,3640.4,3640.2,0.4451]
[1736044902176,2.15719151,3640.4,3640.2,0.71985]
[1736044902371,2.15719151,3640.4,3640.2,0.4451]
[1736044903479,2.15719151,3640.4,3640.3,0.27474]
[1736044904179,2.15719151,3640.7,3640.3,6.72965783]
[1736044904374,2.15719151,3640.7,3640.4,0.4299]
[1736044905178,6.44834642,3640.8,3640.4,6.88481783]
[1736044905179,0.27472,3640.6,3640.4,6.88481783]
[1736044905883,0.27472,3640.5,3640.4,6.45491783]
[1736044906174,0.4087,3640.5,3640.3,6.45491783]
[1736044906373,3.92163,3640.4,3640.3,6.45491783]
[1736044907475,3.92163,3640.4,3640.2,4.7527128]
[1736044907476,5.80409151,3640.4,3640.2,4.7527128]
[1736044907680,0.27474,3640.3,3640.2,4.7527128]
[1736044908086,2.48295422,3640.3,3640.2,4.3076128]
[1736044908984,0.27476,3640.0,3639.9,4.3076128]
[1736044909282,3.48256,3640.0,3639.9,4.3076128]
[1736044910474,0.27477,3639.9,3639.7,4.3076128]
[1736044910676,0.4054,3639.8,3639.7,4.3076128]
[1736044911688,2.43523904,3639.9,3639.7,4.3076128]
[1736044911871,2.16046904,3639.9,3639.7,4.3076128]
[1736044912681,5.77366904,3640.0,3639.7,4.3076128]
[1736044912881,0.27477,3639.9,3639.7,4.3076128]
[1736044915182,5.77366904,3640.0,3639.7,4.3076128]
[1736044915480,0.27478,3639.8,3639.7,4.3076128]
[1736044919781,7.98188326,3640.0,3639.6,4.3076128]
[1736044919983,0.27478,3639.7,3639.6,4.3076128]
[1736044921486,0.27478,3639.8,3639.6,4.3076128]
[1736044921881,7.98188326,3640.0,3639.6,4.3076128]
[1736044922781,0.27478,3639.8,3639.6,4.3076128]
[1736044924976,0.27478,3639.7,3639.6,4.3076128]
[1736044925182,0.27479,3639.7,3639.5,6.45491783]
[1736044925382,0.27478,3639.8,3639.5,6.45491783]
[1736044927184,0.27478,3639.8,3639.7,4.3074748]
[1736044927387,0.27477,3639.9,3639.7,4.3074748]
[1736044927683,0.27478,3639.8,3639.7,4.3074748]
[1736044928194,3.2078,3639.8,3639.7,4.3074748]
[1736044928794,3.48258,3639.8,3639.7,4.3074748]
[1736044929591,3.2078,3639.8,3639.7,4.3074748]
[1736044930291,4.2048284,3639.8,3639.7,4.3074748]
[1736044931094,0.9970284,3639.8,3639.7,4.3074748]
[1736044931289,4.2048284,3639.8,3639.7,4.3074748]
[1736044932187,4.4796084,3639.8,3639.7,4.3074748]
[1736044932392,4.2048284,3639.8,3639.7,4.3074748]
[1736044934091,4.2048284,3639.8,3639.6,6.45491783]
[1736044934297,4.4796084,3639.8,3639.6,6.45491783]
[1736044934492,4.2048284,3639.8,3639.6,6.45491783]
[1736044937095,4.2048284,3639.8,3639.7,4.31040483]
[1736044938295,3.15749744,3640.0,3639.6,6.45491783]
[1736044938494,3.15749744,3640.0,3639.8,0.27477]
[1736044938795,3.15749744,3640.0,3639.9,0.4248]
[1736044938990,3.15749744,3640.0,3639.9,0.8314]
[1736044941094,0.27477,3639.9,3639.8,4.31014766]
[1736044941290,0.27477,3639.9,3639.7,6.45491783]
[1736044941291,0.4305,3639.9,3639.7,6.45491783]
[1736044941596,5.3589084,3639.8,3639.7,6.45491783]
[1736044942691,8.59984815,3639.8,3639.4,4.31113562]
[1736044943995,2.16020315,3639.6,3639.4,4.31113562]
[1736044944589,1.2718284,3639.5,3639.4,4.31113562]
[1736044945597,0.27481,3639.4,3639.3,0.8558]
[1736044948197,0.9970284,3639.5,3639.3,0.8558]
[1736044948702,0.27481,3639.4,3639.3,0.8558]
[1736044950800,0.27481,3639.4,3639.3,0.4423]
[1736044951102,0.27481,3639.4,3639.2,4.31113562]
[1736044951103,0.27481,3639.3,3639.2,4.31113562]
[1736044951299,1.7013384,3639.3,3639.2,4.31113562]
[1736044952705,3.86154155,3639.3,3639.1,4.31113562]
[1736044954308,3.86154155,3639.3,3639.2,0.4125]
[1736044956107,1.7013384,3639.3,3639.2,0.4125]
[1736044958411,3.86126369,3639.3,3639.2,0.4125]
[1736044959611,1.7013384,3639.3,3639.2,0.4125]
[1736044964807,3.86023363,3639.3,3639.2,0.4125]
[1736044969120,7.06803363,3639.3,3639.2,0.4125]
[1736044970018,3.86023363,3639.3,3639.2,0.4125]
[1736044970222,7.06803363,3639.3,3639.2,0.4125]
[1736044978124,4.9091384,3639.3,3639.2,0.4125]
[1736044979128,0.27485,3638.8,3638.7,4.71693562]
[1736044979329,6.5427068,3638.8,3638.7,4.31113562]
[1736044979526,6.2678568,3638.8,3638.6,6.45491783]
[1736044979725,0.27486,3638.7,3638.6,6.45491783]
[1736044981527,0.27487,3638.6,3638.5,0.8585]
[1736044981727,1.2718984,3638.6,3638.5,0.8585]
[1736044982930,3.43074877,3638.6,3638.5,0.8585]
[1736044987431,3.43074877,3638.6,3638.0,4.31697459]
[1736044987733,0.2749,3638.2,3638.1,0.8166]
[1736044988237,0.7217,3638.2,3638.1,0.8166]
[1736044988426,1.1356,3638.2,3638.1,0.8166]
[1736044988828,1.8577284,3638.2,3638.0,4.31697459]
[1736044989129,1.34091,3638.1,3638.0,4.31697459]
[1736044989335,0.27494,3637.6,3637.5,5.58097459]
[1736044991129,0.27494,3637.6,3637.5,1.264]
[1736044992433,1.2719684,3637.6,3637.5,1.264]
[1736044993832,1.2719684,3637.6,3637.5,0.8234]
[1736044994034,1.6965684,3637.6,3637.5,0.8234]
[1736044995541,0.27497,3637.3,3637.2,0.4123]
[1736044995735,1.2719984,3637.3,3637.2,0.4123]
[1736044998040,0.9970284,3637.3,3637.2,0.4123]
[1736044998338,1.2719984,3637.3,3637.2,0.4123]
[1736045003336,0.9970284,3637.3,3636.8,0.8309]
[1736045003533,0.27498,3637.1,3636.9,0.4459]
[1736045003736,3.2078,3637.4,3636.9,0.4459]
[1736045003945,0.9970284,3637.0,3636.9,0.4459]
[1736045005240,3.2078,3637.4,3636.9,0.4459]
[1736045005441,4.2048284,3637.4,3637.0,1.2720084]
[1736045005642,4.2048284,3637.4,3637.0,0.9970284]
[1736045005846,4.2048284,3637.4,3637.0,1.2720184]
[1736045008046,4.2048284,3637.4,3637.1,0.27498]
[1736045008453,4.2048284,3637.4,3637.2,0.4104]
[1736045009939,3.2078,3637.4,3637.2,0.4104]
[1736045010152,1.2719684,3637.6,3637.2,0.4104]
[1736045011152,0.9970284,3637.6,3637.2,0.4104]
[1736045011344,0.9970284,3637.6,3637.2,1.4074284]
[1736045011547,0.9970284,3637.6,3637.2,1.6823984]
[1736045011854,0.9970284,3637.6,3637.3,0.27496]
[1736045012047,0.9970284,3637.6,3637.4,0.4069]
[1736045012246,3.2078,3637.8,3637.5,0.4148]
[1736045012447,4.2048284,3637.8,3637.6,0.27494]
[1736045012647,4.2048284,3637.8,3637.6,0.4189]